bitfinex-derivatives/quotes_SOLF0:USTF0_20240913
["timestamp","ask_amount","ask_price","bid_price","bid_amount"]
[1726252404526,3.6436,137.19,137.18,11.2]
[1726252405724,11.2,137.22,137.18,14.8438]
[1726252405917,11.2,137.22,137.18,11.2]
[1726252406119,3.6432,137.21,137.19,11.2]
[1726252406930,28.85661872,137.23,137.18,14.8437]
[1726252407829,3.6434,137.2,137.18,14.8437]
[1726252409134,3.6436,137.19,137.18,11.2]
[1726252410327,3.6434,137.2,137.18,11.2]
[1726252410731,3.6434,137.2,137.18,14.8439]
[1726252411530,11.2,137.2,137.11,7.299]
[1726252411732,11.2,137.18,137.14,11.2]
[1726252412227,3.6444,137.16,137.11,10.89008]
[1726252412430,3.6444,137.16,137.11,7.299]
[1726252412626,3.6444,137.16,137.13,11.2]
[1726252413219,3.6444,137.16,137.13,14.8451]
[1726252413735,21.30101872,137.16,137.13,14.8451]
[1726252414030,3.6444,137.16,137.13,14.8451]
[1726252414431,3.6444,137.16,137.14,11.2]
[1726252417033,17.66192935,137.23,137.15,11.2]
[1726252417228,29.98000957,137.22,137.17,11.2]
[1726252417431,3.644,137.18,137.17,11.2]
[1726252417634,17.66192935,137.2,137.17,11.2]
[1726252417934,17.66192935,137.19,137.12,3.59108]
[1726252418142,17.66192935,137.23,137.18,11.2]
[1726252418327,17.66192935,137.23,137.21,11.2]
[1726252418631,3.6428,137.22,137.21,11.2]
[1726252418832,21.30472935,137.22,137.21,11.2]
[1726252419032,17.66192935,137.22,137.21,11.2]
[1726252419239,3.6426,137.23,137.21,11.2]
[1726252419441,17.66192935,137.23,137.21,11.2]
[1726252419732,17.66192935,137.22,137.21,11.2]
[1726252420129,3.6428,137.23,137.21,11.2]
[1726252420337,3.6428,137.23,137.22,11.2]
[1726252422247,3.6428,137.22,137.21,11.2]
[1726252422739,3.6432,137.21,137.2,11.2]
[1726252424043,3.6429,137.22,137.2,11.2]
[1726252424536,21.31349947,137.22,137.2,11.2]
[1726252424738,17.67059947,137.21,137.2,11.2]
[1726252425443,3.6429,137.22,137.2,11.2]
[1726252426139,17.67059947,137.22,137.2,14.8432]
[1726252426343,17.67059947,137.23,137.21,11.2]
[1726252426546,11.2,137.29,137.22,11.2]
[1726252426741,3.6418,137.26,137.25,11.2]
[1726252426941,21.31376276,137.26,137.17,14.48305498]
[1726252427242,3.6418,137.26,137.25,11.2]
[1726252427543,3.6416,137.27,137.25,11.2]
[1726252427744,3.6416,137.27,137.26,11.2]
[1726252427941,16.94511335,137.27,137.26,14.8418]
[1726252428141,18.06362038,137.27,137.26,11.2]
[1726252428341,1.11850703,137.27,137.26,11.2]
[1726252428537,18.06362038,137.27,137.26,11.2]
[1726252428842,20.58661335,137.27,137.26,11.2]
[1726252429342,3.6415,137.27,137.26,11.2]
[1726252429737,3.6412,137.29,137.26,11.2]
[1726252429935,1.11885547,137.28,137.27,11.2]
[1726252430740,4.76005547,137.28,137.27,11.2]
[1726252431050,1.11880813,137.28,137.25,11.2]
[1726252431346,4.76050813,137.27,137.25,11.2]
[1726252431549,4.0773,137.3,137.26,11.2]
[1726252431741,1.1185475,137.29,137.26,11.2]
[1726252432239,3.6414,137.28,137.26,11.2]
[1726252435848,3.6415,137.27,137.26,11.2]
[1726252436352,3.6418,137.26,137.25,11.2]
[1726252436650,16.94511335,137.29,137.25,11.2]
[1726252436851,11.2,137.38,137.28,11.2]
[1726252437049,11.2,137.38,137.25,11.2]
[1726252437050,1.11819448,137.37,137.33,11.2]
[1726252437343,3.6396,137.35,137.33,11.2]
[1726252437948,3.6396,137.34,137.33,11.2]
[1726252440355,3.6399,137.33,137.32,11.2]
[1726252440554,3.6399,137.33,137.31,11.2]
[1726252441146,3.6399,137.33,137.32,11.2]
[1726252441954,3.6396,137.34,137.32,11.2]
[1726252443653,3.6396,137.34,137.31,3.6404]
[1726252443946,11.2,137.38,137.33,11.2]
[1726252445258,11.2,137.37,137.31,3.6402]
[1726252445454,11.2,137.37,137.33,11.2]
[1726252446847,3.6396,137.34,137.33,11.2]
[1726252447254,7.68702895,137.39,137.29,3.6408]
[1726252447255,3.6403,137.32,137.29,3.6408]
[1726252447452,3.6403,137.32,137.23,7.296]
[1726252447453,3.6403,137.32,137.31,11.2]
[1726252448750,3.6406,137.31,137.3,11.2]
[1726252450555,3.6403,137.32,137.3,11.2]
[1726252451859,3.6404,137.31,137.3,11.2]
[1726252452261,13.9883,137.34,137.29,11.2]
[1726252453066,11.2,137.31,137.27,11.2]
[1726252453254,11.2,137.31,137.26,11.2]
[1726252453450,11.2,137.31,137.27,11.2]
[1726252453655,3.641,137.29,137.27,11.2]
[1726252454762,3.641,137.29,137.27,14.8415]
[1726252455657,11.2,137.32,137.28,11.2]
[1726252455966,1.3849,137.33,137.29,11.2]
[1726252456460,2.7883,137.34,137.3,11.2]
[1726252456669,2.7883,137.34,137.32,11.2]
[1726252457165,3.6401,137.33,137.32,11.2]
[1726252458271,2.7883,137.34,137.32,11.2]
[1726252458567,2.7883,137.34,137.31,11.2]
[1726252459069,3.6402,137.32,137.31,11.2]
[1726252459468,3.64,137.33,137.31,11.2]
[1726252459663,2.7883,137.34,137.31,11.2]
[1726252460060,3.6402,137.32,137.31,11.2]
[1726252461871,84.26251317,137.53,137.31,11.2]
[1726252461872,24.15206826,137.65,137.6,777.99268622]
[1726252462074,40.20369189,137.9,137.64,11.2]
[1726252462369,15.88679624,137.89,137.49,7.296]
[1726252462561,1.12062124,137.89,137.49,7.296]
[1726252462761,1.12062124,137.89,137.51,7.296]
[1726252462972,2.8058,138.11,137.51,7.296]
[1726252463269,2.8058,138.11,137.96,11.2]
[1726252463270,1.11919067,138.1,137.96,11.2]
[1726252463572,1.11919067,138.1,137.72,30.94539776]
[1726252463772,1.4065,138.09,137.73,18.13090822]
[1726252464073,1.11919067,138.08,137.93,27.83]
[1726252464270,1.4065,138.09,137.96,27.83]
[1726252464471,1.4065,138.09,137.79,31.18934291]
[1726252464670,1.4065,138.09,137.8,24.4560737]
[1726252464867,2.8058,138.11,137.81,11.69232234]
[1726252465069,2.8058,138.11,137.95,9.05539776]
[1726252465376,30.6358,138.11,137.99,9.05539776]
[1726252465673,27.83,138.08,138.0,38.3281389]
[1726252465876,2.8058,138.11,138.01,38.3281389]
[1726252466073,2.8058,138.11,137.88,3.35934291]
[1726252466074,23.59264519,138.1,137.89,67.15]
[1726252466271,45.26,138.03,137.89,3.59413]
[1726252466574,45.25,137.99,137.89,3.59413]
[1726252466771,11.30480341,137.98,137.89,3.59413]
[1726252466971,11.30480341,137.98,137.84,45.25]
[1726252466972,3.6237,137.95,137.88,3.59244]
[1726252467179,9.06338767,137.91,137.86,45.25]
[1726252467469,19.96774289,137.94,137.86,45.25]
[1726252467470,6.47419219,137.9,137.89,45.25]
[1726252467676,9.06338767,137.96,137.89,45.25]
[1726252467864,3.6249023,137.97,137.86,3.59244]
[1726252467865,3.6249023,137.95,137.86,3.59244]
[1726252468073,9.06338767,138.04,137.91,45.25]
[1726252468373,3.6214,138.04,137.94,3.6238]
[1726252468573,8.81107572,138.06,137.96,45.25]
[1726252468767,3.6257456,138.03,137.96,45.25]
[1726252468974,45.25,138.1,137.96,48.84244]
[1726252469160,3.62479337,138.09,137.96,48.84244]
[1726252469365,45.25,138.07,137.96,3.59244]
[1726252469560,3.621,138.05,137.98,3.6227]
[1726252469761,169.02992815,139.66,137.98,45.25]
[1726252469967,45.25,138.07,137.98,3.59244]
[1726252470773,53.79836265,138.12,137.98,3.59244]
[1726252471167,3.6201,138.08,138.01,3.622]
[1726252471367,45.25,138.09,137.98,3.59244]
[1726252471565,45.25,138.06,137.98,3.61873]
[1726252472074,44.48943155,138.06,137.98,3.61873]
[1726252472372,48.0558,138.11,137.98,3.61873]
[1726252472575,45.25,138.06,137.98,3.61873]
[1726252472965,45.25,138.08,137.98,3.61873]
[1726252473280,3.6207,138.07,137.99,3.6225]
[1726252473569,2.8058,138.11,137.99,7.24123]
[1726252473762,2.8058,138.11,138.0,3.6221]
[1726252473763,3.6205,138.07,138.0,3.6221]
[1726252473963,45.25,138.1,137.99,3.61873]
[1726252474162,2.8058,138.11,137.99,48.86873]
[1726252474369,45.25,138.1,137.99,48.86873]
[1726252474972,2.8058,138.11,137.99,48.86873]
[1726252475168,2.8058,138.11,138.02,45.25]
[1726252475359,2.8058,138.11,137.99,3.61873]
[1726252475560,45.25,138.06,137.99,3.61873]
[1726252475765,2.8058,138.11,137.99,3.61873]
[1726252475967,2.8058,138.11,137.94,45.25]
[1726252475968,45.25,138.07,137.94,45.25]
[1726252476277,45.25,138.1,137.97,45.25]
[1726252476674,3.6212,138.05,137.97,48.873]
[1726252476974,45.25,138.1,137.97,45.25]
[1726252477177,2.8058,138.11,137.99,45.25]
[1726252477479,2.8058,138.11,137.96,45.25]
[1726252477667,45.25,138.07,137.94,45.25]
[1726252477870,45.25,138.04,137.94,45.25]
[1726252478070,299.06,138.1,137.94,45.25]
[1726252478071,45.25,138.07,137.94,45.25]
[1726252478668,3.6235,137.95,137.94,45.25]
[1726252478874,45.25,138.1,137.94,45.25]
[1726252479072,45.25,138.1,137.96,45.25]
[1726252479575,45.25,138.1,137.93,45.25]
[1726252479777,3.6243,137.92,137.91,45.25]
[1726252480173,45.25,138.08,137.95,45.25]
[1726252480668,3.6233,137.96,137.95,45.25]
[1726252480867,1.4096,138.07,137.9,1334.51439]
[1726252480868,45.25,138.01,137.9,1334.51439]
[1726252481185,45.25,138.01,137.91,45.25]
[1726252481370,1.4096,138.07,137.91,45.25]
[1726252481371,45.25,138.04,137.91,45.25]
[1726252482178,1.4096,138.07,137.95,45.25]
[1726252482476,1.4096,138.07,137.93,3.59283]
[1726252482668,1.4096,138.07,137.96,45.25]
[1726252482872,3.623,137.97,137.96,45.25]
[1726252484073,1.4096,138.07,137.96,45.25]
[1726252484264,1.4096,138.07,137.98,45.25]
[1726252484674,3.6225,137.99,137.98,45.25]
[1726252484875,1.4096,138.07,137.98,45.25]
[1726252485181,1.4096,138.07,138.0,45.25]
[1726252486275,3.6219,138.02,138.0,45.25]
[1726252486478,1.4096,138.07,137.99,3.59283]
[1726252486672,1.4096,138.07,137.97,3.59283]
[1726252486984,2.8058,138.11,138.04,45.25]
[1726252487180,2.8058,138.11,138.02,45.25]
[1726252487981,3.6206,138.07,138.02,45.25]
[1726252488171,2.8058,138.11,138.02,45.25]
[1726252488373,3.6205,138.07,138.02,45.25]
[1726252488585,2.8058,138.11,138.0,45.25]
[1726252489473,3.6206,138.07,138.0,45.25]
[1726252489672,2.8058,138.11,138.01,3.6218]
[1726252490076,3.6214,138.04,137.97,45.25]
[1726252490275,45.25,138.07,137.95,45.25]
[1726252490677,45.25,138.07,137.95,48.8733]
[1726252490880,45.25,138.07,137.95,45.25]
[1726252491084,45.25,138.05,137.93,45.25]
[1726252491282,45.25,138.03,137.9,1379.76439]
[1726252491581,3.6246,137.92,137.9,1379.76439]
[1726252491780,45.25,138.02,137.9,1379.76439]
[1726252492089,7.2414,138.06,137.9,1338.10761]
[1726252492384,45.25,138.03,137.91,45.25]
[1726252493184,45.25,138.03,137.91,48.84322]
[1726252493381,3.6243,137.92,137.91,48.84322]
[1726252493682,45.25,137.98,137.9,1334.51439]
[1726252493982,3.6246,137.91,137.9,1334.51439]
[1726252494571,3.6246,137.91,137.9,1379.76439]
[1726252496279,2.7372,137.97,137.9,1379.76439]
[1726252496486,2.7372,137.97,137.92,45.25]
[1726252496881,3.6241,137.93,137.92,45.25]
[1726252497484,3.6246,137.91,137.9,1379.76439]
[1726252497785,2.7372,137.97,137.9,1379.76439]
[1726252497986,3.6245,137.92,137.9,1379.76439]
[1726252498178,2.7372,137.97,137.9,1379.76439]
[1726252498585,2.23232078,137.97,137.92,45.25]
[1726252499292,2.23232078,137.97,137.9,1334.51439]
[1726252499293,3.6246,137.91,137.9,1379.76439]
[1726252500283,2.23232078,137.97,137.9,1379.76439]
[1726252500488,2.23232078,137.97,137.93,45.25]
[1726252500797,3.6238,137.94,137.93,45.25]
[1726252501095,220.0,137.99,137.93,45.25]
[1726252501296,220.0,137.99,137.96,45.25]
[1726252501297,3.623,137.97,137.96,45.25]
[1726252501495,220.0,137.99,137.94,45.25]
[1726252501797,220.0,137.99,137.92,45.25]
[1726252501997,3.0699456,137.92,137.9,1383.35643]
[1726252502190,220.0,137.99,137.9,1383.35643]
[1726252502391,220.0,137.99,137.92,45.25]
[1726252503100,220.0,137.99,137.94,45.25]
[1726252503801,220.0,137.99,137.92,3.59204]
[1726252503990,3.6246,137.91,137.9,1323.69859]
[1726252504698,3.6246,137.91,137.9,1321.53539]
[1726252506004,3.6246,137.91,137.9,1319.37159]
[1726252507607,3.6246,137.91,137.9,1311.20869]
[1726252508312,3.6246,137.91,137.9,1275.98069]
[1726252510698,48.8746,137.91,137.9,1275.98069]
[1726252511105,48.8746,137.91,137.9,1153.67069]
[1726252511311,3.6246,137.91,137.9,1153.67069]
[1726252512111,3.12559104,137.91,137.9,1153.67069]
[1726252516110,220.0,137.96,137.9,1153.67069]
[1726252516303,220.0,137.96,137.9,1157.29335]
[1726252516612,220.0,137.96,137.9,1153.67069]
[1726252517899,3.6246,137.91,137.9,1153.67069]
[1726252519098,3.6244,137.92,137.9,1153.67069]
[1726252519304,220.0,137.96,137.9,1153.67069]
[1726252519815,220.0,137.96,137.91,27.85]
[1726252520110,220.0,137.96,137.9,1153.67069]
[1726252520319,3.6246,137.91,137.9,1153.67069]
[1726252520614,220.0,137.96,137.9,1153.67069]
[1726252521811,3.624,137.94,137.9,1153.67069]
[1726252522007,3.17489194,137.94,137.9,1153.67069]
[1726252522416,3.6241,137.93,137.9,1153.67069]
[1726252523412,220.0,137.96,137.92,27.85]
[1726252523613,220.0,137.96,137.9,1153.67069]
[1726252523614,35.0911,138.07,137.94,27.85]
[1726252523812,1.11754139,138.06,137.97,27.85]
[1726252524125,3.6228,137.98,137.94,27.85]
[1726252524415,3.6228,137.98,137.94,31.47266]
[1726252524620,98.0,137.99,137.94,31.47266]
[1726252525123,98.0,137.99,137.94,3.62266]
[1726252525305,98.0,137.99,137.97,27.85]
[1726252525504,74.86,137.99,137.97,27.85]
[1726252525710,74.86,137.99,137.98,3.6228]
[1726252525907,29.1528,138.09,137.97,31.47266]
[1726252526110,3.6219,138.02,137.97,3.62266]
[1726252526322,27.85,138.08,137.97,3.62266]
[1726252526708,27.85,138.06,137.97,7.24566]
[1726252527111,27.85,138.06,137.97,3.62266]
[1726252527622,3.6216,138.03,137.97,3.62266]
[1726252527814,27.85,138.06,137.97,3.62266]
[1726252528618,27.09322738,138.06,137.97,3.62266]
[1726252529120,27.85,138.08,137.97,3.62266]
[1726252529326,1.3028,138.09,137.98,27.85]
[1726252529513,1.3028,138.09,138.0,27.85]
[1726252530315,3.6208,138.06,138.0,31.47266]
[1726252530518,1.3028,138.09,138.0,3.62266]
[1726252530713,27.85,138.1,138.0,3.62266]
[1726252531622,3.6209,138.05,138.0,3.62266]
[1726252531812,27.85,138.05,137.98,3.62266]
[1726252532013,27.44580274,138.05,137.94,31.47266]
[1726252532213,3.6217,138.02,137.97,3.6229]
[1726252532411,27.85,138.03,137.94,31.47266]
[1726252532613,27.85,138.01,137.94,3.62266]
[1726252532821,3.6235,137.95,137.9,1153.67069]
[1726252533016,3.6235,137.95,137.9,1157.29335]
[1726252533416,226.0,138.06,137.91,27.85]
[1726252533616,27.85,138.03,137.91,27.85]
[1726252533817,27.85,138.03,137.93,3.6239]
[1726252534021,28.96747313,138.05,137.93,27.85]
[1726252534323,3.6226,137.99,137.93,35.06553]
[1726252534528,27.85,138.04,137.93,35.06553]
[1726252534726,27.85,138.04,137.93,31.44153]
[1726252534916,3.623,137.98,137.93,31.44153]
[1726252535419,27.85,138.02,137.92,3.59153]
[1726252535723,27.85,137.99,137.9,1153.67069]
[1726252535919,27.85,137.97,137.9,1153.67069]
[1726252536317,27.85,138.0,137.9,1153.67069]
[1726252537915,7.57211735,138.08,137.91,27.85]
[1726252537916,27.85,138.02,137.91,27.85]
[1726252538116,27.85,138.02,137.9,1157.29059]
[1726252538316,27.85,137.99,137.9,1153.67069]
[1726252538517,27.85,138.02,137.9,1153.67069]
[1726252538825,27.85,137.99,137.9,1153.67069]
[1726252539226,27.85,138.01,137.9,1181.52069]
[1726252540624,27.85,138.03,137.92,3.6243]
[1726252541533,27.85,138.03,137.91,3.6245]
[1726252541828,27.85,138.03,137.9,1185.11287]
[1726252542223,27.85,138.03,137.9,1188.73757]
[1726252543131,27.85,138.03,137.91,3.6246]
[1726252543431,27.85,138.03,137.91,3.59218]
[1726252543727,27.85,138.03,137.92,31.4743]
[1726252543930,27.85,138.01,137.92,3.59218]
[1726252544127,1.3704,138.0,137.9,1153.67069]
[1726252544932,1.3704,138.0,137.9,1181.52069]
[1726252545425,1.3704,138.0,137.92,27.85]
[1726252545829,1.3704,138.0,137.92,31.4743]
[1726252546030,27.85,138.06,137.95,27.85]
[1726252546233,27.85,138.04,137.92,27.85]
[1726252546537,27.85,138.01,137.9,1153.67069]
[1726252546728,2.6473,138.0,137.9,1153.67069]
[1726252548129,2.6473,138.0,137.91,27.85]
[1726252548635,2.6473,138.0,137.91,31.4746]
[1726252549032,2.6473,138.0,137.9,1153.67069]
[1726252549732,2.6473,138.0,137.91,27.85]
[1726252550328,2.6473,138.0,137.91,31.4745]
[1726252550532,2.6473,138.0,137.91,27.85]
[1726252550733,2.6473,138.0,137.91,31.44139]
[1726252550927,27.85,138.06,137.94,27.85]
[1726252551134,1.11749582,138.05,137.94,27.85]
[1726252551340,1.11749582,138.05,137.96,27.85]
[1726252551530,2.7126,138.07,137.96,27.85]
[1726252551725,1.11735612,138.06,137.96,27.85]
[1726252552238,27.85,138.05,137.94,31.44139]
[1726252552437,27.85,138.03,137.91,27.85]
[1726252552829,27.85,138.03,137.91,31.44139]
[1726252553542,3.6231,137.97,137.91,35.06589]
[1726252553730,27.85,138.03,137.91,31.44139]
[1726252553930,7.2414,138.06,137.93,27.85]
[1726252554132,3.6224,138.0,137.94,3.6237]
[1726252554335,3.6224,138.0,137.93,27.85]
[1726252554533,27.85,138.05,137.93,31.44139]
[1726252554729,27.85,138.05,137.93,35.06549]
[1726252555330,3.6227,137.99,137.93,35.06549]
[1726252555531,27.85,138.05,137.93,27.85]
[1726252555738,3.6232,137.97,137.93,27.85]
[1726252555937,27.85,138.05,137.93,27.85]
[1726252556137,1.11745821,138.04,137.93,27.85]
[1726252556637,27.85,138.03,137.91,35.06681]
[1726252556840,3.6233,137.96,137.91,31.44231]
[1726252557138,21.89,138.05,137.9,1153.67069]
[1726252557139,27.85,138.0,137.9,1153.67069]
[1726252557345,3.6237,137.95,137.9,1153.67069]
[1726252557840,3.6237,137.95,137.9,1157.29559]
[1726252558935,3.6245,137.92,137.9,1153.67069]
[1726252559535,2.6911,137.97,137.9,1153.67069]
[1726252559730,3.6245,137.92,137.9,1153.67069]
[1726252560733,3.6242,137.93,137.9,1153.67069]
[1726252560929,30.5411,137.97,137.9,1153.67069]
[1726252561341,3.6242,137.93,137.9,1153.67069]
[1726252561649,1.387,137.97,137.92,27.85]
[1726252561838,2.7045,138.03,137.94,27.85]
[1726252562140,2.7045,138.03,137.96,27.85]
[1726252562843,2.7045,138.03,137.94,27.85]
[1726252563249,2.7045,138.03,137.91,31.47069]
[1726252563540,2.7045,138.03,137.91,27.85]
[1726252563740,3.6234,137.96,137.91,27.85]
[1726252564153,27.85,138.01,137.91,27.85]
[1726252564942,2.7045,138.03,137.91,27.85]
[1726252565147,1.3447,138.03,137.98,27.85]
[1726252565344,3.621,138.05,138.0,27.85]
[1726252565537,2.8434,138.09,138.02,27.85]
[1726252565841,2.8434,138.09,137.9,1182.85669]
[1726252565842,8.54836265,138.12,138.04,27.85]
[1726252567544,8.54836265,138.12,138.01,28.34891]
[1726252567745,3.62,138.09,138.02,3.6216]
[1726252567941,3.62,138.09,138.01,27.85]
[1726252568247,8.54836265,138.12,138.03,27.85]
[1726252568548,3.6198,138.1,138.03,35.08947]
[1726252568842,8.54836265,138.12,138.03,31.46807]
[1726252569048,8.54836265,138.12,138.03,3.61807]
[1726252569347,8.54836265,138.12,138.03,31.46807]
[1726252569646,3.6198,138.1,138.03,35.08947]
[1726252570238,8.54836265,138.12,138.03,31.46807]
[1726252570547,3.6194,138.11,138.04,3.6211]
[1726252570731,8.54836265,138.12,138.03,31.46807]
[1726252570935,3.6201,138.09,138.03,3.61807]
[1726252571145,8.54836265,138.12,138.03,3.61807]
[1726252571857,3.6194,138.11,138.04,31.471]
[1726252572141,3.6194,138.11,138.04,27.85]
[1726252572347,3.6194,138.11,138.04,31.46807]
[1726252572553,1.11674956,138.1,138.04,35.08927]
[1726252572739,1.11674956,138.1,138.04,31.46807]
[1726252572936,8.54836265,138.12,138.04,31.46807]
[1726252573153,1.11674967,138.11,138.04,31.46807]
[1726252573352,1.11674967,138.11,138.04,3.61807]
[1726252573545,1.11674967,138.11,138.03,3.61807]
[1726252574045,3.62,138.09,138.03,7.23937]
[1726252574246,8.54836265,138.12,138.03,3.61807]
[1726252574445,1.11670281,138.11,138.03,3.61807]
[1726252574748,1.11670282,138.11,138.04,27.85]
[1726252574947,1.11670282,138.11,138.03,3.61807]
[1726252575647,8.54836265,138.12,138.03,3.61807]
[1726252575847,3.6204,138.08,138.03,3.61807]
[1726252576054,27.85,138.1,137.98,27.85]
[1726252576253,1.11684503,138.09,137.98,31.44231]
[1726252576449,3.6205,138.07,138.01,3.6217]
[1726252576853,3.6207,138.06,138.01,3.6217]
[1726252577051,27.85,138.09,138.0,7.24079]
[1726252577349,27.85,138.09,138.0,3.61859]
[1726252577554,27.85,138.09,138.0,7.24069]
[1726252577853,2.6734,138.11,138.0,31.46859]
[1726252578048,1.11678379,138.1,138.0,31.46859]
[1726252578252,1.11678379,138.1,138.02,27.85]
[1726252578444,3.6201,138.09,138.02,27.85]
[1726252578648,8.54836265,138.12,138.04,3.6211]
[1726252578848,1.11668183,138.11,138.04,3.6211]
[1726252579051,3.62,138.09,138.03,3.6212]
[1726252579247,3.62,138.09,138.02,31.46859]
[1726252579652,3.62,138.09,138.04,3.621]
[1726252579855,3.62,138.09,138.04,7.23959]
[1726252580051,3.6196,138.1,138.04,3.61859]
[1726252580252,3.6196,138.1,138.05,3.6209]
[1726252580649,3.6196,138.1,138.04,3.61859]
[1726252580853,3.6196,138.1,138.04,7.23979]
[1726252581153,8.54836265,138.12,138.04,3.61859]
[1726252581857,3.6197,138.1,138.04,31.46859]
[1726252582058,8.54836265,138.12,138.06,3.6205]
[1726252582358,8.54836265,138.12,138.04,27.85]
[1726252582554,8.54836265,138.12,138.05,3.6209]
[1726252583049,8.54836265,138.12,138.05,7.23949]
[1726252583352,8.54836265,138.12,138.05,3.61859]
[1726252583545,8.54836265,138.12,138.04,3.61859]
[1726252583744,8.54836265,138.12,138.04,3.59335]
[1726252583958,3.6197,138.1,138.04,3.621]
[1726252584154,8.54836265,138.12,138.04,3.621]
[1726252584546,3.6198,138.1,138.04,3.621]
[1726252585454,3.6199,138.09,138.04,3.621]
[1726252585857,3.6197,138.1,138.04,3.621]
[1726252586048,3.6197,138.1,138.01,27.85]
[1726252586561,3.6199,138.09,138.04,3.621]
[1726252586757,8.54836265,138.12,138.04,3.621]
[1726252587149,3.6198,138.1,138.04,3.621]
[1726252587350,8.54836265,138.12,138.03,3.6214]
[1726252587746,3.6201,138.09,138.03,3.6214]
[1726252588654,3.6201,138.09,138.04,3.6212]
[1726252588849,3.6201,138.09,138.04,3.59335]
[1726252589051,17.4,138.11,138.04,3.59335]
[1726252589359,17.4,138.11,138.03,20.99335]
[1726252589557,3.6201,138.09,138.03,20.99335]
[1726252589754,3.6201,138.09,138.03,24.61455]
[1726252590256,3.6201,138.09,138.04,3.6212]
[1726252590457,8.54836265,138.12,138.03,20.99335]
[1726252590653,8.54836265,138.12,138.05,17.4]
[1726252590852,8.54836265,138.12,138.05,21.0209]
[1726252591050,3.6198,138.1,138.05,17.4]
[1726252591260,8.54836265,138.12,138.05,17.4]
[1726252591457,8.54836265,138.12,138.06,17.4]
[1726252592053,3.6199,138.09,138.04,24.61455]
[1726252593860,3.6201,138.08,138.04,20.99335]
[1726252594468,3.62,138.09,138.04,20.99335]
[1726252594860,25.94836265,138.12,138.04,20.99335]
[1726252595257,17.4,138.11,138.04,3.59335]
[1726252595565,17.4,138.09,138.01,17.4]
[1726252595761,8.54836265,138.12,138.01,17.4]
[1726252595956,8.54836265,138.12,138.0,7.2404]
[1726252595957,8.54836265,138.12,138.03,17.4]
[1726252596476,8.54836265,138.12,138.03,21.0182]
[1726252596969,8.54836265,138.12,138.03,17.4]
[1726252597161,25.94836265,138.12,138.03,17.4]
[1726252597873,3.6203,138.08,138.03,21.0214]
[1726252598169,25.94836265,138.12,138.03,17.4]
[1726252598469,3.6202,138.08,138.03,21.0213]
[1726252598662,8.54836265,138.12,138.04,17.4]
[1726252599062,8.54836265,138.12,138.04,21.0182]
[1726252599563,3.6201,138.09,138.04,21.0182]
[1726252599965,3.6201,138.09,138.04,24.6394]
[1726252600162,8.54836265,138.12,138.04,21.0182]
[1726252600763,3.6204,138.07,138.02,24.6398]
[1726252600964,3.6204,138.07,138.02,21.0216]
[1726252601175,17.4,138.11,138.02,24.6398]
[1726252601378,3.6202,138.08,138.03,3.6214]
[1726252601564,3.6202,138.08,138.02,17.4]
[1726252601764,3.6202,138.08,138.02,21.0182]
[1726252601980,3.6202,138.08,138.02,24.6397]